fUSD/lending_fUSD_20240630
["ID","MTS","AMOUNT","RATE_DAILY","PERIOD"]
[330732484,1719742249367,-500.0,0.00013996,3]
[330732485,1719742249376,-500.0,0.00013996,3]
[330732486,1719742249386,-548.26,0.00013996,3]
[330732487,1719742249396,-500.0,0.00013996,3]
[330732488,1719742249405,-645.13,0.00013996,3]
[330732489,1719742249415,-1056.6,0.00013996,3]
[330732490,1719742249424,-500.0,0.00013996,3]
[330732491,1719742249433,-644.52,0.00013996,3]
[330732492,1719742249442,-500.0,0.00013996,2]
[330732493,1719742249452,-570.46,0.00013996,3]
[330732494,1719742249461,-500.0,0.00013996,3]
[330732495,1719742249470,-500.0,0.00013996,3]
[330732496,1719742249480,-500.0,0.00013996,3]
[330732497,1719742249491,-500.0,0.00013996,3]
[330732498,1719742249500,-638.17,0.00013996,3]
[330732499,1719742249510,-520.73,0.00013996,3]
[330732500,1719742249523,-909.13,0.00013996,3]
[330732501,1719742249532,-500.0,0.00013996,3]
[330732502,1719742249542,-500.0,0.00013996,3]
[330732503,1719742249552,-500.0,0.00013996,3]
[330732504,1719742249562,-776.86,0.00013996,3]
[330732505,1719742249572,-1641.88,0.00013996,3]
[330732506,1719742249581,-500.0,0.00013996,3]
[330732507,1719742249591,-500.0,0.00013996,3]
[330732508,1719742249601,-500.0,0.00013996,3]
[330732509,1719742249611,-835.51,0.00013996,3]
[330732510,1719742249620,-500.0,0.00013996,3]
[330732511,1719742249630,-500.0,0.00013996,3]
[330732512,1719742249639,-500.0,0.00013996,3]
[330732513,1719742249649,-748.76,0.00013996,3]
[330732514,1719742249659,-500.0,0.00013996,3]
[330732515,1719742249669,-497.13708577,0.00013996,3]
[330732516,1719742249679,-506.13738141,0.00013996,3]
[330732517,1719742249689,-500.0,0.00013996,3]
[330732518,1719742249699,-500.0,0.00013996,3]
[330732519,1719742249708,-500.0,0.00013996,3]
[330732520,1719742249718,-500.0,0.00013996,3]
[330732521,1719742249727,-590.49,0.00013996,3]
[330732522,1719742249739,-1657.41,0.00013996,3]
[330732523,1719742249749,-891.06,0.00013996,3]
[330732524,1719742249763,-500.0,0.00013996,3]
[330732525,1719742249772,-484.50712047,0.00013996,3]
[330732526,1719742249782,-500.0,0.00013996,3]
[330732527,1719742249792,-500.0,0.00013996,3]
[330732528,1719742249801,-500.0,0.00013996,3]
[330732529,1719742249811,-675.41,0.00013996,3]
[330732530,1719742249821,-610.64,0.00013996,3]
[330732531,1719742249831,-500.0,0.00013996,3]
[330732532,1719742249841,-579.61,0.00013996,3]
[330732533,1719742249851,-500.0,0.00013996,3]
[330732534,1719742249860,-500.0,0.00013996,3]
[330732535,1719742249870,-671.69,0.00013996,3]
[330732536,1719742249880,-500.0,0.00013996,3]
[330732537,1719742249890,-379.68600643,0.00013996,3]
[330732538,1719742249900,-500.0,0.00013996,3]
[330732539,1719742249909,-598.38,0.00013996,3]
[330732540,1719742249919,-500.0,0.00013996,3]
[330732541,1719742249928,-500.0,0.00013996,3]
[330732542,1719742249938,-500.0,0.00013996,3]
[330732543,1719742249948,-559.94,0.00013996,3]
[330732544,1719742249958,-500.0,0.00013996,3]
[330732545,1719742249968,-500.0,0.00013996,3]
[330732546,1719742249978,-620.34,0.00013996,3]
[330732547,1719742249989,-500.0,0.00013996,3]
[330732548,1719742249998,-500.0,0.00013996,3]
[330732549,1719742250008,-2058.76,0.00013996,3]
[330732550,1719742250018,-749.88,0.00013996,3]
[330732551,1719742250027,-557.5,0.00013996,3]
[330732552,1719742250037,-630.73,0.00013996,3]
[330732553,1719742250048,-500.0,0.00013996,3]
[330732554,1719742250058,-500.0,0.00013996,3]
[330732555,1719742250068,-500.0,0.00013996,3]
[330732556,1719742250078,-1416.99,0.00013996,3]
[330732557,1719742250088,-737.86,0.00013996,3]
[330732558,1719742250098,-500.0,0.00013996,3]
[330732559,1719742250108,-500.0,0.00013996,3]
[330732560,1719742250118,-500.0,0.00013996,3]
[330732561,1719742250127,-846.79,0.00013996,3]
[330732562,1719742250137,-500.0,0.00013996,3]
[330732563,1719742250147,-500.0,0.00013996,3]
[330732564,1719742250156,-500.0,0.00013996,3]
[330732565,1719742250166,-1040.84,0.00013996,3]
[330732566,1719742250175,-500.0,0.00013996,3]
[330732567,1719742250184,-1966.4,0.00013996,3]
[330732568,1719742250194,-500.0,0.00013996,3]
[330732569,1719742250206,-696.79,0.00013996,3]
[330732570,1719742250216,-500.0,0.00013996,3]
[330732571,1719742250226,-500.0,0.00013996,3]
[330732572,1719742250236,-500.0,0.00013996,3]
[330732573,1719742250246,-633.77,0.00013996,3]
[330732574,1719742250256,-598.98,0.00013996,3]
[330732575,1719742250265,-2312.26,0.00013996,3]
[330732576,1719742250275,-500.0,0.00013996,3]
[330732577,1719742250291,-500.0,0.00013996,3]
[330732578,1719742250301,-574.13,0.00013996,3]
[330732579,1719742250311,-500.0,0.00013996,3]
[330732580,1719742250323,-500.0,0.00013996,3]
[330732581,1719742250333,-800.11,0.00013996,3]
[330732582,1719742250343,-500.0,0.00013996,2]
[330732583,1719742250353,-500.0,0.00013996,3]
[330732584,1719742250365,-500.0,0.00013996,3]
[330732585,1719742250375,-500.0,0.00013996,2]
[330732586,1719742250384,-500.0,0.00013996,3]
[330732587,1719742250394,-500.0,0.00013996,2]
[330732588,1719742250404,-500.0,0.00013996,3]
[330732589,1719742250414,-1006.4,0.00013996,3]
[330732590,1719742250424,-332.95593075,0.00013996,3]
[330732591,1719742251735,-353.44412154,0.00013983,2]
[330732592,1719742251750,-13.22587846,0.00013983,2]
[330732593,1719742251760,-366.67,0.00013984,2]
[330732594,1719742251771,-366.67,0.00013984,2]
[330732595,1719742251782,-366.67,0.00013984,2]
[330732596,1719742251792,-366.67,0.00013984,2]
[330732597,1719742251802,-167.04406925,0.00013996,3]
[330732598,1719742251813,-513.46,0.00013996,3]
[330732599,1719742251824,-3531.92849229,0.00013996,3]
[330732600,1719742251848,-1960.90527917,0.00013996,3]
[330732601,1719742251861,-2044.08986171,0.00013996,3]
[330732602,1719742251874,-1968.09619443,0.00013996,3]
[330732603,1719742251887,-884.9696866,0.00013996,3]
[330732604,1719742251899,-674.44,0.00013996,3]
[330732605,1719742251912,-1046.81219841,0.00013996,3]
[330732606,1719742251953,-6232.94828739,0.00013996,3]
[330732607,1719742251963,-1210.48,0.00013996,3]
[330732608,1719742251974,-500.0,0.00013996,3]
[330732609,1719742251984,-579.17,0.00013996,3]
[330732610,1719742251995,-522.12,0.00013996,3]
[330732611,1719742252005,-532.2,0.00013996,3]
[330732612,1719742252015,-500.0,0.00013996,3]
[330732613,1719742252026,-500.0,0.00013996,3]
[330732614,1719742252036,-500.0,0.00013996,3]
[330732615,1719742252046,-841.8,0.00013996,3]
[330732616,1719742252057,-500.0,0.00013996,3]
[330732617,1719742252067,-500.0,0.00013996,3]
[330732618,1719742252077,-762.14,0.00013996,3]
[330732619,1719742252087,-1471.69,0.00013996,3]
[330732620,1719742252097,-500.0,0.00013996,3]
[330732621,1719742252108,-500.0,0.00013996,3]
[330732622,1719742252118,-500.0,0.00013996,3]
[330732623,1719742252128,-500.0,0.00013996,3]
[330732624,1719742252139,-592.73,0.00013996,3]
[330732625,1719742252154,-500.0,0.00013996,3]
[330732626,1719742252165,-500.0,0.00013996,3]
[330732627,1719742252175,-500.0,0.00013996,3]
[330732628,1719742252186,-986.9,0.00013996,3]
[330732629,1719742252199,-500.0,0.00013996,3]
[330732630,1719742252210,-500.0,0.00013996,3]
[330732631,1719742252220,-1267.6,0.00013996,3]
[330732632,1719742252231,-500.0,0.00013996,3]
[330732633,1719742252243,-500.0,0.00013996,3]
[330732634,1719742252254,-2087.09,0.00013996,3]
[330732635,1719742252266,-1003.09,0.00013996,3]
[330732636,1719742252279,-973.53,0.00013996,3]
[330732637,1719742252292,-500.0,0.00013996,3]
[330732638,1719742252303,-1905.21,0.00013996,3]
[330732639,1719742252314,-500.0,0.00013996,3]
[330732640,1719742252326,-502.73,0.00013996,3]
[330732641,1719742252336,-1251.05,0.00013996,3]
[330732642,1719742252347,-500.0,0.00013996,3]
[330732643,1719742252358,-566.11,0.00013996,3]
[330732644,1719742252369,-500.0,0.00013996,3]
[330732645,1719742252379,-1876.92,0.00013996,3]
[330732646,1719742252390,-681.41,0.00013996,3]
[330732647,1719742252401,-929.12,0.00013996,3]
[330732648,1719742252412,-636.82,0.00013996,3]
[330732649,1719742252422,-1320.62,0.00013996,3]
[330732650,1719742252432,-1074.9,0.00013996,3]
[330732651,1719742252443,-500.0,0.00013996,3]
[330732652,1719742252453,-500.0,0.00013996,3]
[330732653,1719742252463,-500.0,0.00013996,3]
[330732654,1719742252474,-545.81,0.00013996,3]
[330732655,1719742252484,-500.0,0.00013996,3]
[330732656,1719742252495,-500.0,0.00013996,3]
[330732657,1719742252506,-500.0,0.00013996,3]
[330732658,1719742252516,-697.09,0.00013996,3]
[330732659,1719742252527,-500.0,0.00013996,3]
[330732660,1719742252537,-1476.03,0.00013996,3]
[330732661,1719742252547,-836.32,0.00013996,3]
[330732662,1719742252558,-500.0,0.00013996,3]
[330732663,1719742252568,-564.66,0.00013996,2]
[330732664,1719742252578,-1210.71,0.00013996,3]
[330732665,1719742252588,-500.0,0.00013996,3]
[330732666,1719742252599,-866.83,0.00013996,3]
[330732667,1719742252610,-500.0,0.00013996,3]
[330732668,1719742252620,-1496.07,0.00013996,3]
[330732669,1719742252630,-500.0,0.00013996,2]
[330732670,1719742252640,-500.0,0.00013996,3]
[330732671,1719742252650,-500.0,0.00013996,3]
[330732672,1719742252660,-1800.76,0.00013996,3]
[330732673,1719742252670,-500.0,0.00013996,3]
[330732674,1719742252681,-500.0,0.00013996,3]
[330732675,1719742252691,-1651.56,0.00013996,3]
[330732676,1719742252701,-835.99,0.00013996,3]
[330732677,1719742252711,-1163.24,0.00013996,3]
[330732678,1719742252721,-943.02,0.00013996,3]
[330732679,1719742252731,-137.1810121,0.00013996,3]
[330732680,1719742252747,-362.8189879,0.00013996,3]
[330732681,1719742252757,-500.0,0.00013996,3]
[330732682,1719742252771,-640.67,0.00013996,3]
[330732683,1719742252780,-811.16,0.00013996,3]
[330732684,1719742252790,-500.0,0.00013996,3]
[330732685,1719742252801,-500.0,0.00013996,2]
[330732686,1719742252811,-500.0,0.00013996,3]
[330732687,1719742252821,-623.86,0.00013996,3]
[330732688,1719742252832,-2449.71,0.00013997,3]
[330732689,1719742252842,-597.38,0.00013997,3]
[330732690,1719742252852,-500.0,0.00013997,3]
[330732691,1719742252862,-1049.05,0.00013997,3]
[330732692,1719742252872,-724.81,0.00013997,3]
[330732693,1719742252882,-813.89,0.00013997,3]
[330732694,1719742252892,-1108.83,0.00013997,3]
[330732695,1719742252902,-1306.79,0.00013997,3]
[330732696,1719742252912,-500.0,0.00013997,2]
[330732697,1719742252923,-500.0,0.00013997,2]
[330732698,1719742252933,-500.0,0.00013997,2]
[330732699,1719742252943,-500.0,0.00013997,3]
[330732700,1719742252953,-500.0,0.00013997,2]
[330732701,1719742252963,-500.0,0.00013997,2]
[330732702,1719742252973,-242.67864233,0.00013997,3]
[330732703,1719742253583,-227.04865744,0.00012314,2]
[330732704,1719742253593,-591.5645175,0.00013997,3]
[330732705,1719742253605,-2311.09684017,0.00013997,3]
[330732706,1719742253616,-1460.46,0.00013997,3]
[330732707,1719742253626,-1798.89769951,0.00013997,3]
[330732708,1719742253642,-602.99762478,0.00013997,3]
[330732709,1719742253655,-3069.84467571,0.00013997,3]
[330732710,1719742253666,-564.66,0.00013997,2]
[330732711,1719742253676,-500.0,0.00013997,2]
[330732712,1719742253687,-500.0,0.00013997,2]
[330732713,1719742253698,-1308.7,0.00013997,3]
[330732714,1719742253708,-500.0,0.00013998,2]
[330732715,1719742253718,-893.68,0.00013998,3]
[330732716,1719742253728,-3893.14,0.00013998,3]
[330732717,1719742253739,-829.2183349,0.00013998,3]
[330732718,1719742254206,474.74,0.00011149,2]
[330732724,1719742328409,411.47785028,0.00011149,2]
[330732725,1719742342852,300.14535077,0.00011149,2]
[330732728,1719742464505,298.60521442,0.00011097,2]
[330732729,1719742464530,8937.8080118,0.00011097,2]
[330732730,1719742465249,4714.50354419,0.00011098,2]
[330732739,1719742599641,956.1106904,0.00011098,2]
[330732743,1719742726204,150.0,0.00011098,2]
[330732744,1719742726227,23.72389627,0.00011098,2]
[330732745,1719742728279,328.56337647,0.00011098,2]
[330732746,1719742738678,2198.85723835,0.00011098,2]
[330732748,1719742750459,227.04865744,0.00011098,2]
[330732749,1719742753695,474.78077656,0.00011098,2]
[330732750,1719742755330,155.0,0.00011098,2]
[330732751,1719742771604,156.78767382,0.00011098,2]
[330732752,1719742782087,254.31058783,0.00011098,2]
[330732753,1719742790034,205.32220319,0.00011098,2]
[330732755,1719742816502,155.0,0.00011098,2]
[330732756,1719742820754,533.11260756,0.00011098,2]
[330732758,1719742836742,503.3,0.00011051,2]
[330732769,1719743049608,155.97353947,0.00011098,2]
[330732770,1719743063306,216.93020437,0.00011098,2]
[330732775,1719743257489,227.04865744,0.00011098,2]
[330732779,1719743300333,171.89911609,0.00011098,2]
[330732788,1719743385254,478.13,0.00010297,2]
[330732789,1719743411391,155.0,0.00011098,2]
[330732809,1719743432279,-1000.0,0.00011198,2]
[330732810,1719743432290,-300.0,0.00011198,2]
[330732811,1719743432300,-2935.04792031,0.00011199,2]
[330732812,1719743432311,-424.54627044,0.00011199,2]
[330732813,1719743432325,-3481.8,0.00011199,2]
[330732814,1719743432339,-8582.54579053,0.00011199,2]
[330732815,1719743432350,-5356.97039948,0.00011199,2]
[330732816,1719743432431,-656.42724467,0.00011199,2]
[330732817,1719743432442,-329.14260328,0.00011199,2]
[330732818,1719743432454,-18365.2898425,0.00011199,2]
[330732819,1719743432463,-600.01045024,0.000115,2]
[330732820,1719743432473,-250.0,0.00012192,2]
[330732821,1719743432483,-500.0,0.00012202,2]
[330732822,1719743432492,-190.81,0.00012211,2]
[330732823,1719743432503,-1852.42,0.00012219,2]
[330732824,1719743432512,-420.0,0.00012303,2]
[330732825,1719743432522,-227.04865744,0.00012314,2]
[330732826,1719743432536,-23900.0,0.0001242,2]
[330732827,1719743432548,-250.0,0.00012474,2]
[330732828,1719743432558,-25377.13,0.00012474,2]
[330732829,1719743432568,-1453.04,0.00012474,2]
[330732830,1719743432579,-150.99,0.00012497,2]
[330732831,1719743432590,-183.63,0.00012508,2]
[330732832,1719743432600,-150.0,0.0001253,2]
[330732833,1719743432610,-168.64,0.00012532,2]
[330732834,1719743432620,-499.99,0.00012532,2]
[330732835,1719743432632,-316.59,0.00012532,2]
[330732836,1719743432645,-9999.99,0.00012532,2]
[330732837,1719743432656,-478.13,0.00012561,2]
[330732838,1719743432666,-151.56,0.00012561,2]
[330732839,1719743432677,-151.56,0.00012597,2]
[330732840,1719743432688,-151.56,0.00012633,2]
[330732841,1719743432698,-151.56,0.0001267,2]
[330732842,1719743432708,-150.0,0.00012674,2]
[330732843,1719743432718,-151.56,0.00012706,2]
[330732844,1719743432729,-151.56,0.00012742,2]
[330732845,1719743432739,-151.56,0.00012779,2]
[330732846,1719743432749,-151.56,0.00012815,2]
[330732847,1719743432759,-152.3647633,0.00012847,2]
[330732848,1719743432769,-151.56,0.00012851,2]
[330732849,1719743432779,-151.56,0.00012888,2]
[330732851,1719743432789,-151.56,0.00012924,2]
[330732852,1719743432799,-151.56,0.00012961,2]
[330732853,1719743432808,-1000.0,0.00012971,2]
[330732854,1719743432819,-151.56,0.00012997,2]
[330732855,1719743432830,-151.56,0.00013033,2]
[330732856,1719743432839,-151.56,0.0001307,2]
[330732857,1719743432850,-151.56,0.00013106,2]
[330732858,1719743432860,-151.56,0.00013142,2]
[330732859,1719743432871,-151.56,0.00013179,2]
[330732860,1719743432882,-151.56,0.00013215,2]
[330732861,1719743432891,-587.0,0.00013517,2]
[330732862,1719743432901,-334.7,0.00013699,2]
[330732863,1719743432911,-1068.51,0.00013699,2]
[330732864,1719743432920,-385.10220627,0.000138,2]
[330732865,1719743432930,-178.0099,0.0001386,2]
[330732866,1719743432940,-4994.09882495,0.00013892,2]
[330732867,1719743432949,-4413.79567325,0.00013892,2]
[330732868,1719743432959,-1000.0,0.00013894,2]
[330732869,1719743432969,-15271.0891,0.00013894,2]
[330732870,1719743432978,-1000.62453944,0.000139,2]
[330732871,1719743432988,-174.08619548,0.000139,2]
[330732872,1719743432997,-169.01653921,0.000139,2]
[330732873,1719743433007,-3036.61197521,0.000139,2]
[330732874,1719743433017,-416.74693327,0.00013922,2]
[330732875,1719743433026,-150.0,0.00013962,2]
[330732876,1719743433036,-206.6,0.00013983,2]
[330732877,1719743433050,-206.6,0.00013983,2]
[330732878,1719743433060,-206.6,0.00013984,2]
[330732879,1719743433071,-206.6,0.00013984,2]
[330732880,1719743433081,-930.4,0.00013992,3]
[330732881,1719743433092,-749.3,0.00013992,3]
[330732882,1719743433101,-500.0,0.00013992,3]
[330732883,1719743433111,-500.0,0.00013992,3]
[330732884,1719743433121,-500.0,0.00013992,3]
[330732885,1719743433130,-909.44,0.00013992,3]
[330732886,1719743433140,-500.0,0.00013992,3]
[330732887,1719743433149,-599.55,0.00013992,3]
[330732888,1719743433158,-1160.11,0.00013992,3]
[330732889,1719743433168,-1059.76,0.00013992,3]
[330732890,1719743433178,-500.0,0.00013992,3]
[330732891,1719743433187,-500.0,0.00013992,3]
[330732892,1719743433197,-929.43,0.00013992,3]
[330732893,1719743433207,-1050.32,0.00013992,3]
[330732894,1719743433216,-500.0,0.00013992,3]
[330732895,1719743433226,-780.95,0.00013992,3]
[330732896,1719743433235,-500.0,0.00013992,3]
[330732897,1719743433245,-721.64,0.00013992,3]
[330732898,1719743433254,-500.0,0.00013992,3]
[330732899,1719743433263,-500.0,0.00013992,3]
[330732900,1719743433273,-810.04,0.00013992,3]
[330732901,1719743433283,-1114.98,0.00013992,3]
[330732902,1719743433295,-798.72,0.00013992,3]
[330732903,1719743433305,-1264.13,0.00013992,3]
[330732904,1719743433315,-744.2,0.00013992,3]
[330732905,1719743433324,-500.0,0.00013992,3]
[330732906,1719743433335,-500.0,0.00013992,3]
[330732907,1719743433346,-572.72,0.00013992,3]
[330732908,1719743433355,-898.55,0.00013992,3]
[330732909,1719743433365,-588.15,0.00013992,3]
[330732910,1719743433375,-754.6,0.00013992,3]
[330732911,1719743433386,-500.0,0.00013992,3]
[330732912,1719743433398,-948.51,0.00013992,3]
[330732913,1719743433408,-791.26,0.00013992,3]
[330732914,1719743433418,-1377.33,0.00013992,3]
[330732915,1719743433427,-561.73,0.00013992,3]
[330732916,1719743433437,-500.0,0.00013992,2]
[330732917,1719743433447,-1597.47,0.00013992,3]
[330732918,1719743433456,-245.93426715,0.00013992,3]
[330732919,1719743433466,-519.66,0.00013992,3]
[330732920,1719743433475,-778.19,0.00013992,3]
[330732921,1719743433485,-892.81,0.00013992,3]
[330732922,1719743433494,-500.0,0.00013992,3]
[330732923,1719743433504,-1014.91,0.00013992,3]
[330732924,1719743433514,-1053.02,0.00013992,3]
[330732925,1719743433524,-1263.09,0.00013992,3]
[330732926,1719743433533,-993.05,0.00013992,3]
[330732927,1719743433543,-555.38,0.00013992,3]
[330732928,1719743433553,-939.23,0.00013992,3]
[330732929,1719743433563,-500.0,0.00013992,3]
[330732930,1719743433572,-1267.4,0.00013992,3]
[330732931,1719743433582,-949.8,0.00013992,3]
[330732932,1719743433591,-1000.86,0.00013992,3]
[330732933,1719743433602,-725.87,0.00013992,3]
[330732934,1719743433611,-1050.49,0.00013992,3]
[330732935,1719743433621,-825.38,0.00013992,3]
[330732936,1719743433630,-523.43,0.00013992,3]
[330732937,1719743433647,-997.31,0.00013992,3]
[330732938,1719743433657,-500.0,0.00013992,3]
[330732939,1719743433668,-2295.61,0.00013992,3]
[330732940,1719743433677,-798.38,0.00013992,3]
[330732941,1719743433689,-500.0,0.00013992,3]
[330732942,1719743433699,-1114.04,0.00013992,3]
[330732943,1719743433709,-1817.64,0.00013992,3]
[330732944,1719743433722,-692.38,0.00013992,3]
[330732945,1719743433733,-749.77,0.00013992,3]
[330732946,1719743433744,-853.7,0.00013992,3]
[330732947,1719743433754,-500.0,0.00013992,3]
[330732948,1719743433765,-500.0,0.00013992,3]
[330732949,1719743433775,-500.0,0.00013992,3]
[330732950,1719743433786,-940.19,0.00013992,3]
[330732951,1719743433797,-1280.03,0.00013992,3]
[330732952,1719743433806,-674.64,0.00013992,3]
[330732953,1719743433816,-928.49,0.00013992,3]
[330732954,1719743433827,-1111.68,0.00013992,3]
[330732955,1719743433840,-764.46,0.00013992,3]
[330732956,1719743433852,-500.0,0.00013992,3]
[330732957,1719743433862,-500.0,0.00013992,3]
[330732958,1719743433875,-500.0,0.00013992,3]
[330732959,1719743433885,-943.83,0.00013992,3]
[330732960,1719743433896,-1060.95,0.00013992,3]
[330732961,1719743433906,-500.0,0.00013992,3]
[330732962,1719743433916,-500.0,0.00013992,3]
[330732963,1719743433927,-500.0,0.00013992,3]
[330732964,1719743433937,-500.0,0.00013992,3]
[330732965,1719743433948,-329.63544741,0.00013992,3]
[330732966,1719743433960,-597.9,0.00013992,3]
[330732967,1719743433971,-500.0,0.00013992,3]
[330732968,1719743433980,-589.77,0.00013992,3]
[330732969,1719743433991,-996.07,0.00013993,3]
[330732970,1719743434003,-754.34,0.00013993,3]
[330732971,1719743434013,-500.0,0.00013993,3]
[330732972,1719743434023,-1034.8,0.00013993,3]
[330732973,1719743434033,-500.0,0.00013993,3]
[330732974,1719743434043,-500.0,0.00013993,3]
[330732975,1719743434053,-500.0,0.00013993,3]
[330732976,1719743434062,-500.0,0.00013993,3]
[330732977,1719743434072,-833.96,0.00013993,3]
[330732978,1719743434082,-1168.54,0.00013993,3]
[330732979,1719743434101,-500.0,0.00013993,3]
[330732980,1719743434111,-612.33,0.00013993,3]
[330732981,1719743434121,-500.0,0.00013993,3]
[330732982,1719743434131,-921.16,0.00013993,3]
[330732983,1719743434141,-808.39,0.00013993,3]
[330732984,1719743434151,-866.36,0.00013993,3]
[330732985,1719743434161,-1019.84,0.00013993,3]
[330732986,1719743434171,-931.91,0.00013993,3]
[330732987,1719743434180,-1061.32,0.00013993,3]
[330732988,1719743434190,-500.0,0.00013993,3]
[330732989,1719743434200,-585.68,0.00013993,3]
[330732990,1719743434209,-739.14,0.00013993,3]
[330732991,1719743434218,-849.37,0.00013993,3]
[330732992,1719743434228,-990.51,0.00013993,3]
[330732993,1719743434237,-500.0,0.00013993,3]
[330732994,1719743434247,-500.0,0.00013993,3]
[330732995,1719743434257,-597.11,0.00013993,3]
[330732996,1719743434267,-720.31,0.00013993,3]
[330732997,1719743434276,-986.25,0.00013993,3]
[330732998,1719743434286,-919.39,0.00013993,3]
[330732999,1719743434296,-687.94,0.00013993,3]
[330733000,1719743434306,-500.0,0.00013993,3]
[330733001,1719743434315,-1048.65,0.00013993,3]
[330733002,1719743434325,-505.05,0.00013993,3]
[330733003,1719743434335,-500.0,0.00013993,3]
[330733004,1719743434344,-500.0,0.00013993,3]
[330733005,1719743434355,-939.99,0.00013993,3]
[330733006,1719743434364,-609.58,0.00013993,3]
[330733007,1719743434374,-789.77,0.00013993,3]
[330733008,1719743434383,-1380.76,0.00013993,3]
[330733009,1719743434394,-672.47,0.00013993,3]
[330733010,1719743434403,-1693.99,0.00013993,3]
[330733011,1719743434414,-500.0,0.00013993,3]
[330733012,1719743434755,-550.75,0.00013993,3]
[330733013,1719743434765,-500.0,0.00013993,3]
[330733014,1719743434775,-617.38,0.00013993,3]
[330733015,1719743434786,-500.0,0.00013993,3]
[330733016,1719743434796,-588.84,0.00013993,3]
[330733017,1719743434805,-3880.52684531,0.00013993,3]
[330733018,1719743434821,-418.90217464,0.00013993,3]
[330733019,1719743434834,-1144.16098005,0.00013993,3]
[330733020,1719743434843,-525.81,0.00013993,3]
[330733021,1719743434854,-57.40774171,0.00013993,3]
[330733022,1719743434867,-471.28225829,0.00013993,3]
[330733023,1719743434878,-1147.83,0.00013993,3]
[330733024,1719743434888,-500.0,0.00013993,3]
[330733025,1719743434897,-500.0,0.00013993,2]
[330733026,1719743434907,-500.0,0.00013993,3]
[330733027,1719743434916,-500.0,0.00013993,3]
[330733028,1719743434926,-500.0,0.00013993,3]
[330733029,1719743434935,-685.17,0.00013993,3]
[330733030,1719743434945,-568.98,0.00013993,3]
[330733031,1719743434955,-500.0,0.00013993,3]
[330733032,1719743434965,-694.11,0.00013993,3]
[330733033,1719743434974,-676.44,0.00013993,3]
[330733034,1719743434983,-2434.6591709,0.00013993,3]
[330733035,1719743435015,-781.95019923,0.00013993,3]
[330733036,1719743435028,-159.82062987,0.00013993,3]
[330733037,1719743435037,-500.0,0.00013993,3]
[330733038,1719743435048,-530.26,0.00013993,3]
[330733039,1719743435057,-500.0,0.00013993,3]
[330733041,1719743435067,-440.36922301,0.00013993,3]
[330733042,1719743435081,-59.63077699,0.00013993,3]
[330733043,1719743435091,-498.79,0.00013993,3]
[330733044,1719743435099,-268.71634586,0.00013993,3]
[330733045,1719743435112,-231.28365414,0.00013993,3]
[330733046,1719743435121,-500.0,0.00013993,3]
[330733047,1719743435130,-2523.91,0.00013993,3]
[330733048,1719743435140,-981.6,0.00013993,3]
[330733049,1719743435149,-500.0,0.00013993,3]
[330733050,1719743435157,-500.0,0.00013993,3]